{"text_format":"1","workbook":"xlsx","n_sheets":4,"sheets":["Žiačky U12","Žiačky U15","Žiaci U15","Žiaci U12"],"not_rendered":{"charts":0,"images":0,"macros":1,"external_links":5,"defined_names":171,"comments":0,"pivot_tables":0},"unopened":[],"bounds":{"document_bytes":16777216,"sheet_cells":100000,"rows_first":2000,"rows_last":500,"rows_between":2000,"halvings":0,"cell_chars":16384,"cell_head_chars":4096},"cells_cut":0,"cells_raw":0,"read":"whole","date_system":"1900"}

{"sheet":"Žiačky U12","index":0,"n_rows":33,"n_cols":11,"rows_kept":33,"cut":false,"hidden":false,"merged":[[0,1,0,2],[0,5,0,9],[1,1,1,2],[1,4,1,6],[1,7,1,9]]}
[null,"Majstrovstvá kraja",null,"Žiačky U12","Kraj :","Trnavský"]
[null,2025,null,"kolkáreň :","Zlaté Klasy",null,null,"4.1.2025"]
[null,"Š.č.","Hráčka","Č.r.p.","Klub","Plné","Dor.","Ch.","Celkom","Porad."]
[null,1,"Magalová Timea",null,"TJ Rakovice",175,{"$f":"I4-F4","v":78},2,253,{"$f":"IF(I4=0,\"\",RANK(I4,$I$4:$I$33))","v":1},{"$f":"IF(I4=\"\",\"nie\",\"áno\")","v":"áno"}]
[null,2,"Magyarics Lucia",null,"TJ Slavoj Sládkovičovo",171,63,6,234,2,"áno"]
[null,3,"Ifková Liliana",null,"KKZ Hlohovec",147,61,7,208,3,"áno"]
[null,4,"Tánczosová Laura",null,"MKK Slovan Galanta",152,25,20,177,4,"áno"]
[null,5,"Lapošová Simona",null,"KKZ Hlohovec",145,31,20,176,5,"áno"]
[null,6,null,null,null,null,0,null,null,"","nie"]
[null,7,null,null,null,null,0,null,null,"","nie"]
[null,8,null,null,null,null,0,null,null,"","nie"]
[null,9,null,null,null,null,0,null,null,"","nie"]
[null,10,null,null,null,null,0,null,null,"","nie"]
[null,11,null,null,null,null,0,null,null,"","nie"]
[null,12,null,null,null,null,0,null,null,"","nie"]
[null,13,null,null,null,null,0,null,null,"","nie"]
[null,14,null,null,null,null,0,null,null,"","nie"]
[null,15,null,null,null,null,0,null,null,"","nie"]
[null,16,null,null,null,null,0,null,null,"","nie"]
[null,17,null,null,null,null,0,null,null,"","nie"]
[null,18,null,null,null,null,0,null,null,"","nie"]
[null,19,null,null,null,null,0,null,null,"","nie"]
[null,20,null,null,null,null,0,null,null,"","nie"]
[null,21,null,null,null,null,0,null,null,"","nie"]
[null,22,null,null,null,null,0,null,null,"","nie"]
[null,23,null,null,null,null,0,null,null,"","nie"]
[null,24,null,null,null,null,0,null,null,"","nie"]
[null,25,null,null,null,null,0,null,null,"","nie"]
[null,26,null,null,null,null,0,null,null,"","nie"]
[null,27,null,null,null,null,0,null,null,"","nie"]
[null,28,null,null,null,null,0,null,null,"","nie"]
[null,29,null,null,null,null,0,null,null,"","nie"]
[null,30,null,null,null,null,0,null,null,"","nie"]

{"sheet":"Žiačky U15","index":1,"n_rows":33,"n_cols":11,"rows_kept":33,"cut":false,"hidden":false,"merged":[[0,1,0,2],[0,5,0,9],[1,1,1,2],[1,4,1,6],[1,7,1,9]]}
[null,"Majstrovstvá kraja",null,"Žiačky U15","Kraj :","Trnavský"]
[null,2025,null,"kolkáreň :","Zlaté Klasy",null,null,"4.1.2025"]
[null,"Š.č.","Hráčka","Č.r.p.","Klub","Plné","Dor.","Ch.","Celkom","Porad."]
[null,1,"Bečková Kristína",null,"MKK Piešťany",156,{"$f":"I4-F4","v":69},10,225,{"$f":"IF(I4=0,\"\",RANK(I4,$I$4:$I$33))","v":1},{"$f":"IF(I4=\"\",\"nie\",\"áno\")","v":"áno"}]
[null,2,"Machová Laura",null,"MKK Slovan Galanta",165,35,14,200,2,"áno"]
[null,3,"Lučanská Stella",null,"MKK Piešťany",134,24,19,158,3,"áno"]
[null,4,null,null,null,null,0,null,null,"","nie"]
[null,5,null,null,null,null,0,null,null,"","nie"]
[null,6,null,null,null,null,0,null,null,"","nie"]
[null,7,null,null,null,null,0,null,null,"","nie"]
[null,8,null,null,null,null,0,null,null,"","nie"]
[null,9,null,null,null,null,0,null,null,"","nie"]
[null,10,null,null,null,null,0,null,null,"","nie"]
[null,11,null,null,null,null,0,null,null,"","nie"]
[null,12,null,null,null,null,0,null,null,"","nie"]
[null,13,null,null,null,null,0,null,null,"","nie"]
[null,14,null,null,null,null,0,null,null,"","nie"]
[null,15,null,null,null,null,0,null,null,"","nie"]
[null,16,null,null,null,null,0,null,null,"","nie"]
[null,17,null,null,null,null,0,null,null,"","nie"]
[null,18,null,null,null,null,0,null,null,"","nie"]
[null,19,null,null,null,null,0,null,null,"","nie"]
[null,20,null,null,null,null,0,null,null,"","nie"]
[null,21,null,null,null,null,0,null,null,"","nie"]
[null,22,null,null,null,null,0,null,null,"","nie"]
[null,23,null,null,null,null,0,null,null,"","nie"]
[null,24,null,null,null,null,0,null,null,"","nie"]
[null,25,null,null,null,null,0,null,null,"","nie"]
[null,26,null,null,null,null,0,null,null,"","nie"]
[null,27,null,null,null,null,0,null,null,"","nie"]
[null,28,null,null,null,null,0,null,null,"","nie"]
[null,29,null,null,null,null,0,null,null,"","nie"]
[null,30,null,null,null,null,0,null,null,"","nie"]

{"sheet":"Žiaci U15","index":2,"n_rows":33,"n_cols":11,"rows_kept":33,"cut":false,"hidden":false,"merged":[[0,1,0,2],[0,5,0,9],[1,1,1,2],[1,4,1,6],[1,7,1,9]]}
[null,"Majstrovstvá kraja",null,"Žiaci U15","Kraj :","Trnavský"]
[null,2025,null,"kolkáreň :","Zlaté Klasy",null,null,"4.1.2025"]
[null,"Š.č.","Hráč","Č.r.p.","Klub","Plné","Dor.","Ch.","Celkom","Porad."]
[null,1,"Hupko Richard",null,"ŠK Modranka",195,{"$f":"I4-F4","v":79},8,274,{"$f":"IF(I4=0,\"\",RANK(I4,$I$4:$I$33))","v":1},{"$f":"IF(I4=\"\",\"nie\",\"áno\")","v":"áno"}]
[null,2,"Kosár Konrád",null,"MKK Slovan Galanta",179,79,79,258,2,"áno"]
[null,3,"Masár Timotej",null,"TJ Rakovice",162,94,1,256,3,"áno"]
[null,4,"Magyarics Viktor",null,"TJ Slavoj Sládkovičovo",164,79,5,243,4,"áno"]
[null,5,"Markech Filip",null,"MKK Piešťany",163,67,8,230,5,"áno"]
[null,6,"Kubalec Matej",null,"MKK Slovan Galanta",168,44,13,212,6,"áno"]
[null,7,"Saxun Samuel",null,"MKK Piešťany",134,68,13,202,7,"áno"]
[null,8,null,null,null,null,0,null,null,"","nie"]
[null,9,null,null,null,null,0,null,null,"","nie"]
[null,10,null,null,null,null,0,null,null,"","nie"]
[null,11,null,null,null,null,0,null,null,"","nie"]
[null,12,null,null,null,null,0,null,null,"","nie"]
[null,13,null,null,null,null,0,null,null,"","nie"]
[null,14,null,null,null,null,0,null,null,"","nie"]
[null,15,null,null,null,null,0,null,null,"","nie"]
[null,16,null,null,null,null,0,null,null,"","nie"]
[null,17,null,null,null,null,0,null,null,"","nie"]
[null,18,null,null,null,null,0,null,null,"","nie"]
[null,19,null,null,null,null,0,null,null,"","nie"]
[null,20,null,null,null,null,0,null,null,"","nie"]
[null,21,null,null,null,null,0,null,null,"","nie"]
[null,22,null,null,null,null,0,null,null,"","nie"]
[null,23,null,null,null,null,0,null,null,"","nie"]
[null,24,null,null,null,null,0,null,null,"","nie"]
[null,25,null,null,null,null,0,null,null,"","nie"]
[null,26,null,null,null,null,0,null,null,"","nie"]
[null,27,null,null,null,null,0,null,null,"","nie"]
[null,28,null,null,null,null,0,null,null,"","nie"]
[null,29,null,null,null,null,0,null,null,"","nie"]
[null,30,null,null,null,null,0,null,null,"","nie"]

{"sheet":"Žiaci U12","index":3,"n_rows":33,"n_cols":11,"rows_kept":33,"cut":false,"hidden":false,"merged":[[0,1,0,2],[0,5,0,9],[1,1,1,2],[1,4,1,6],[1,7,1,9]]}
[null,"Majstrovstvá kraja",null,"Žiaci U12","Kraj :","Trnavský"]
[null,2025,null,"kolkáreň :","Zlaté Klasy",null,null,"4.1.2025"]
[null,"Š.č.","Hráč","Č.r.p.","Klub","Plné","Dor.","Ch.","Celkom","Porad."]
[null,1,"Varga Áron",null,"KK Zlaté Klasy",163,{"$f":"I4-F4","v":80},7,243,{"$f":"IF(I4=0,\"\",RANK(I4,$I$4:$I$33))","v":1},{"$f":"IF(I4=\"\",\"nie\",\"áno\")","v":"áno"}]
[null,2,"Szabó Péter",null,"MKK Slovan Galanta",174,62,9,236,2,"áno"]
[null,3,"Németh Adam",null,"KK Zlaté Klasy",161,63,8,224,3,"áno"]
[null,4,"Adamička Kristián",null,"MKK Piešťany",148,66,10,214,4,"áno"]
[null,5,"Mikóczy Márk",null,"KK Zlaté Klasy",157,52,8,209,5,"áno"]
[null,6,"Tóth Adam",null,"KK Zlaté Klasy",136,42,16,178,6,"áno"]
[null,7,null,null,null,null,0,null,null,"","nie"]
[null,8,null,null,null,null,0,null,null,"","nie"]
[null,9,null,null,null,null,0,null,null,"","nie"]
[null,10,null,null,null,null,0,null,null,"","nie"]
[null,11,null,null,null,null,0,null,null,"","nie"]
[null,12,null,null,null,null,0,null,null,"","nie"]
[null,13,null,null,null,null,0,null,null,"","nie"]
[null,14,null,null,null,null,0,null,null,"","nie"]
[null,15,null,null,null,null,0,null,null,"","nie"]
[null,16,null,null,null,null,0,null,null,"","nie"]
[null,17,null,null,null,null,0,null,null,"","nie"]
[null,18,null,null,null,null,0,null,null,"","nie"]
[null,19,null,null,null,null,0,null,null,"","nie"]
[null,20,null,null,null,null,0,null,null,"","nie"]
[null,21,null,null,null,null,0,null,null,"","nie"]
[null,22,null,null,null,null,0,null,null,"","nie"]
[null,23,null,null,null,null,0,null,null,"","nie"]
[null,24,null,null,null,null,0,null,null,"","nie"]
[null,25,null,null,null,null,0,null,null,"","nie"]
[null,26,null,null,null,null,0,null,null,"","nie"]
[null,27,null,null,null,null,0,null,null,"","nie"]
[null,28,null,null,null,null,0,null,null,"","nie"]
[null,29,null,null,null,null,0,null,null,"","nie"]
[null,30,null,null,null,null,0,null,null,"","nie"]